bitfinex/quotes_SOLUSD_20220105
["timestamp","ask_amount","ask_price","bid_price","bid_amount"]
[1641343515993,1.828,168.32,168.24,0.26]
[1641343516792,1.828,168.32,168.24,1.44850786]
[1641343516993,1.828,168.32,168.24,1.70850786]
[1641343517196,1.828,168.32,168.24,0.26]
[1641343517994,1.828,168.32,168.23,27.41728027]
[1641343518194,1.828,168.32,168.24,1.44850786]
[1641343518695,1.828,168.32,168.24,0.26]
[1641343519398,1.828,168.32,168.24,1.44850786]
[1641343519595,1.828,168.32,168.24,1.70850786]
[1641343521599,1.828,168.32,168.24,0.26]
[1641343521801,1.828,168.32,168.23,27.41728027]
[1641343522002,1.828,168.32,168.24,1.44850786]
[1641343522405,1.828,168.32,168.24,1.70850786]
[1641343522602,23.0865,168.33,168.24,1.70850786]
[1641343522801,84.2974,168.39,168.24,2.20850786]
[1641343523005,1.3182,168.38,168.25,8.52]
[1641343523400,1.3182,168.38,168.25,9.28]
[1641343523601,27.68471118,168.37,168.26,58.68538993]
[1641343523802,27.68471118,168.37,168.26,64.48038993]
[1641343524001,27.68471118,168.37,168.27,1.44850786]
[1641343524501,27.68471118,168.37,168.27,2.20850786]
[1641343524904,27.68471118,168.37,168.28,1.44850786]
[1641343525105,27.68471118,168.37,168.29,2.95645032]
[1641343525401,27.68471118,168.37,168.29,4.71315032]
[1641343525601,27.68471118,168.37,168.29,4.97315032]
[1641343526505,24.5872,168.38,168.29,4.97315032]
[1641343527107,1.3182,168.38,168.29,6.42165818]
[1641343527709,34.1555,168.41,168.29,11.16165818]
[1641343528009,9.8205,168.44,168.3,135.65598229]
[1641343528436,9.8205,168.44,168.31,1.44850786]
[1641343528639,1.3005,168.44,168.31,1.44850786]
[1641343528835,1.3005,168.44,168.31,10.72850786]
[1641343529236,1.3005,168.44,168.32,1.44850786]
[1641343529435,1.3005,168.44,168.33,24.30769857]
[1641343529635,1.3005,168.44,168.35,2.89827545]
[1641343529838,50.64491835,168.45,168.35,3.39827545]
[1641343530040,50.64491835,168.45,168.35,3.65827545]
[1641343530441,50.64491835,168.45,168.36,23.5748]
[1641343530641,50.64491835,168.45,168.36,25.02330786]
[1641343530841,50.64491835,168.45,168.36,25.78330786]
[1641343531442,26.81471835,168.45,168.36,25.78330786]
[1641343531641,26.81471835,168.45,168.36,27.08800786]
[1641343531840,26.81471835,168.45,168.37,1.44850786]
[1641343532041,26.81471835,168.45,168.37,1.70850786]
[1641343532240,26.81471835,168.45,168.37,2.20850786]
[1641343532441,74.6946,168.46,168.37,2.20850786]
[1641343532643,74.6946,168.46,168.37,0.76]
[1641343532841,74.6946,168.46,168.37,0.26]
[1641343533041,74.6946,168.46,168.36,25.6395]
[1641343534243,74.6946,168.46,168.37,1.44850786]
[1641343534446,74.6946,168.46,168.37,1.94850786]
[1641343534644,74.6946,168.46,168.37,0.76]
[1641343535247,74.6946,168.46,168.36,25.6395]
[1641343535446,74.6946,168.46,168.37,1.44850786]
[1641343535652,74.6946,168.46,168.36,25.6395]
[1641343535846,76.0354,168.46,168.36,25.6395]
[1641343536047,76.0354,168.46,168.37,1.44850786]
[1641343536447,76.0354,168.46,168.37,0.76]
[1641343536848,76.0354,168.46,168.37,0.26]
[1641343537047,76.0354,168.46,168.36,25.6395]
[1641343537648,76.0354,168.46,168.37,1.44850786]
[1641343537850,76.0354,168.46,168.37,1.94850786]
[1641343538148,76.0354,168.46,168.37,2.20850786]
[1641343538350,76.0354,168.46,168.38,1.44850786]
[1641343538550,76.0354,168.46,168.38,1.70850786]
[1641343539448,76.0354,168.46,168.39,1.44850786]
[1641343539650,1.3408,168.46,168.39,1.44850786]
[1641343539848,1.3408,168.46,168.39,1.70850786]
[1641343540253,1.3408,168.46,168.39,0.26]
[1641343540554,1.8408,168.46,168.36,25.1395]
[1641343540752,1.3408,168.46,168.36,25.1395]
[1641343542052,1.8408,168.46,168.36,25.1395]
[1641343543155,10.3608,168.46,168.36,25.1395]
[1641343545055,10.6208,168.46,168.36,25.1395]
[1641343545857,10.3608,168.46,168.36,25.1395]
[1641343546055,10.6208,168.46,168.36,25.28330786]
[1641343546456,10.3608,168.46,168.36,25.28330786]
[1641343546655,34.702,168.46,168.36,25.0985]
[1641343546889,34.702,168.46,168.37,1.44850786]
[1641343547057,34.702,168.46,168.37,1.70850786]
[1641343547258,34.202,168.46,168.37,1.70850786]
[1641343547858,34.702,168.46,168.37,1.70850786]
[1641343548060,34.702,168.46,168.37,0.26]
[1641343548459,34.702,168.46,168.36,25.0985]
[1641343548657,34.962,168.46,168.36,25.0985]
[1641343549257,34.702,168.46,168.36,25.0985]
[1641343549658,34.962,168.46,168.36,26.54700786]
[1641343551362,34.702,168.46,168.36,2.71220786]
[1641343551561,34.702,168.46,168.35,2.38516646]
[1641343551562,1.44850786,168.45,168.35,2.38516646]
[1641343551761,8.52,168.44,168.35,2.38516646]
[1641343551961,9.02,168.44,168.3,1.2665]
[1641343552163,25.94430786,168.43,168.3,1.2665]
[1641343552361,8.52,168.42,168.3,1.2665]
[1641343552561,8.78,168.42,168.3,1.2665]
[1641343552864,10.72850786,168.42,168.29,101.9764]
[1641343553062,10.72850786,168.42,168.3,2.15065607]
[1641343553462,10.72850786,168.42,168.3,2.41065607]
[1641343553664,1.2895,168.41,168.3,2.41065607]
[1641343553862,33.73131226,168.4,168.3,2.41065607]
[1641343554063,33.99131226,168.4,168.3,2.41065607]
[1641343554263,34.49131226,168.4,168.3,2.41065607]
[1641343558673,34.23131226,168.4,168.3,2.41065607]
[1641343564594,9.02,168.4,168.3,2.41065607]
[1641343564995,9.02,168.4,168.3,2.91065607]
[1641343565294,8.52,168.4,168.3,2.91065607]
[1641343565494,1.2895,168.41,168.3,2.41065607]
[1641343565697,0.7895,168.41,168.3,2.41065607]
[1641343565895,0.7895,168.41,168.3,2.91065607]
[1641343566299,0.7895,168.41,168.31,24.479]
[1641343566497,0.7895,168.41,168.31,24.739]
[1641343567995,0.7895,168.41,168.31,25.239]
[1641343568397,0.7895,168.41,168.31,24.739]
[1641343569898,23.6352,168.43,168.31,25.239]
[1641343570299,0.5,168.43,168.31,25.239]
[1641343570700,1.8427,168.44,168.31,25.239]
[1641343571503,0.5,168.44,168.32,8.52]
[1641343571701,0.5,168.44,168.33,24.9756]
[1641343571901,2.16937671,168.47,168.33,110.3901]
[1641343572101,2.16937671,168.47,168.33,110.6501]
[1641343572301,2.16937671,168.47,168.34,1.3679]
[1641343572602,30.62019218,168.47,168.35,27.6730312]
[1641343573102,30.62019218,168.47,168.37,2.66310167]
[1641343573503,30.62019218,168.47,168.37,2.92310167]
[1641343573905,30.62019218,168.47,168.38,1.3566]
[1641343574103,30.62019218,168.47,168.38,1.6166]
[1641343577106,1.3189,168.48,168.38,1.6166]
[1641343577308,1.3189,168.48,168.38,7.3326]
[1641343577505,1.3189,168.48,168.39,24.6768]
[1641343577904,1.3189,168.48,168.39,25.4368]
[1641343578705,1.3189,168.48,168.4,1.307]
[1641343579110,1.3189,168.48,168.4,1.567]
[1641343585016,1.3189,168.48,168.4,2.067]
[1641343585717,8.52,168.52,168.5,13.78274859]
[1641343585916,0.5,168.52,168.51,6.06439992]
[1641343586116,0.5,168.52,168.51,6.32439992]
[1641343586315,10.18937671,168.54,168.51,6.32439992]
[1641343586517,2.16937671,168.54,168.51,0.26]
[1641343586716,0.5,168.54,168.5,14.04274859]
[1641343587115,35.64530732,168.55,168.5,14.04274859]
[1641343587316,33.97593061,168.55,168.5,14.04274859]
[1641343588145,33.97593061,168.55,168.5,13.78274859]
[1641343588547,33.97593061,168.55,168.5,14.04274859]
[1641343588745,34.23593061,168.55,168.5,14.04274859]
[1641343589950,33.97593061,168.55,168.5,13.78274859]
[1641343590147,34.23593061,168.55,168.5,13.78274859]
[1641343593051,13.78274859,168.5,168.43,1.2879]
[1641343593251,13.78274859,168.5,168.36,23.4063]
[1641343593252,8.52,168.49,168.36,23.4063]
[1641343593449,10.46850786,168.49,168.36,23.4063]
[1641343593650,23.2386167,168.48,168.36,23.4063]
[1641343593853,8.52,168.47,168.36,23.4063]
[1641343594051,8.52,168.47,168.37,2.66745797]
[1641343594252,9.02,168.47,168.37,2.66745797]
[1641343594853,9.02,168.47,168.37,2.92745797]
[1641343595753,8.52,168.47,168.38,1.3463]
[1641343596153,8.52,168.47,168.38,1.6063]
[1641343596354,22.30274859,168.5,168.38,2.1063]
[1641343596554,44.87081649,168.5,168.38,25.6697]
[1641343596756,45.37081649,168.5,168.38,25.6697]
[1641343597758,36.85081649,168.5,168.38,25.6697]
[1641343597958,13.78274859,168.5,168.38,25.6697]
[1641343598258,13.78274859,168.5,168.38,27.11820786]
[1641343599561,13.78274859,168.5,168.38,35.63820786]
[1641343602964,14.28274859,168.5,168.38,25.4097]
[1641343603165,13.78274859,168.5,168.38,25.4097]
[1641343603968,14.28274859,168.5,168.38,25.6697]
[1641343604371,14.28274859,168.5,168.38,25.1697]
[1641343605871,14.28274859,168.5,168.38,25.6697]
[1641343607376,22.80274859,168.5,168.38,25.6697]
[1641343607575,14.28274859,168.5,168.38,25.6697]
[1641343607975,22.80274859,168.5,168.38,25.6697]
[1641343611479,14.28274859,168.5,168.38,25.6697]
[1641343613682,14.28274859,168.5,168.38,25.4097]
[1641343613683,32.1082,168.49,168.38,25.4097]
[1641343613881,32.6082,168.49,168.37,2.66745797]
[1641343614084,32.8682,168.49,168.37,2.66745797]
[1641343614283,32.6082,168.49,168.37,2.66745797]
[1641343614504,32.8682,168.49,168.37,2.66745797]
[1641343614704,32.8682,168.49,168.37,4.00605797]
[1641343615105,32.8682,168.49,168.37,1.3386]
[1641343615308,32.8682,168.49,168.37,1.5986]
[1641343616305,32.8682,168.49,168.38,2.67968628]
[1641343616505,32.8682,168.49,168.38,2.93968628]
[1641343617107,32.6082,168.49,168.38,2.93968628]
[1641343618312,32.8682,168.49,168.38,2.93968628]
[1641343620113,32.6082,168.49,168.38,2.93968628]
[1641343620514,32.6082,168.49,168.38,4.38819414]
[1641343620911,32.6082,168.49,168.38,2.93968628]
[1641343621311,32.6082,168.49,168.39,24.4494]
[1641343621514,32.6082,168.49,168.39,24.7094]
[1641343621914,32.6082,168.49,168.4,1.2863]
[1641343622113,32.6082,168.49,168.4,1.5463]
[1641343627326,9.02,168.49,168.4,1.5463]
[1641343627527,13.78274859,168.5,168.4,2.0463]
[1641343627728,13.78274859,168.5,168.41,1.44850786]
[1641343627928,13.78274859,168.5,168.42,24.66536216]
[1641343628328,13.78274859,168.5,168.42,25.42536216]
[1641343628529,13.78274859,168.5,168.42,31.64336216]
[1641343628931,13.78274859,168.5,168.42,33.09187002]
[1641343629132,13.78274859,168.5,168.42,34.40307002]
[1641343629431,13.78274859,168.5,168.42,34.14307002]
[1641343629633,13.78274859,168.5,168.42,32.69456216]
[1641343629831,13.78274859,168.5,168.42,26.47656216]
[1641343630834,13.78274859,168.5,168.42,26.73656216]
[1641343634760,13.78274859,168.5,168.42,26.47656216]
[1641343635763,13.78274859,168.5,168.42,1.8112]
[1641343635960,13.78274859,168.5,168.42,1.3112]
[1641343636161,14.28274859,168.5,168.42,1.5712]
[1641343638062,14.28274859,168.5,168.42,1.3112]
[1641343639564,22.80274859,168.5,168.42,1.5712]
[1641343640568,14.28274859,168.5,168.42,1.5712]
[1641343640965,13.78274859,168.5,168.42,1.5712]
[1641343641166,13.78274859,168.5,168.42,2.0712]
[1641343643070,13.78274859,168.5,168.42,3.51970786]
[1641343653079,13.78274859,168.5,168.42,12.03970786]
[1641343653483,13.78274859,168.5,168.44,3.05983103]
[1641343653881,13.78274859,168.5,168.44,3.81983103]
[1641343654281,13.78274859,168.5,168.45,1.44850786]
[1641343654481,13.78274859,168.5,168.45,2.20850786]
[1641343657185,13.78274859,168.5,168.47,22.47674136]
[1641343657388,13.78274859,168.5,168.48,6.06439992]
[1641343657585,13.78274859,168.5,168.48,7.77290778]
[1641343657786,13.78274859,168.5,168.48,8.27290778]
[1641343658487,13.28274859,168.5,168.49,1.44850786]
[1641343658987,13.28274859,168.5,168.49,2.20850786]
[1641343660412,13.28274859,168.5,168.45,27.59730786]
[1641343660611,13.28274859,168.5,168.45,28.09730786]
[1641343661613,13.28274859,168.5,168.45,28.35730786]
[1641343662113,13.28274859,168.5,168.45,26.9088]
[1641343663514,13.28274859,168.5,168.45,28.35730786]
[1641343668219,10.78274859,168.5,168.45,28.35730786]
[1641343674124,10.78274859,168.5,168.45,26.6488]
[1641343674326,10.78274859,168.5,168.45,26.1488]
[1641343674524,10.78274859,168.5,168.44,3.05983103]
[1641343674725,11.28274859,168.5,168.44,3.05983103]
[1641343675526,11.28274859,168.5,168.44,3.31983103]
[1641343675926,10.78274859,168.5,168.44,3.31983103]
[1641343676326,10.78274859,168.5,168.42,1.44850786]
[1641343676526,25.85574859,168.5,168.38,1.2675]
[1641343676726,23.3899,168.49,168.33,24.1969]
[1641343676932,8.52,168.48,168.33,25.4493]
[1641343677328,9.02,168.48,168.34,3.01362895]
[1641343677527,9.02,168.48,168.34,29.94515744]
[1641343677928,9.02,168.48,168.34,30.44515744]
[1641343678233,9.02,168.48,168.34,40.4136653]
[1641343678428,8.52,168.48,168.35,11.69427885]
[1641343678627,8.52,168.48,168.35,36.51927885]
[1641343678927,8.52,168.48,168.35,37.27927885]
[1641343680730,24.6499,168.49,168.36,9.96850786]
[1641343680930,24.6499,168.49,168.37,23.1727]
[1641343681330,24.6499,168.49,168.37,23.9327]
[1641343681532,1.26,168.49,168.38,1.3005]
[1641343682034,1.26,168.49,168.38,2.0605]
[1641343682638,1.26,168.49,168.38,78.1308]
[1641343685536,1.26,168.49,168.39,8.52]
[1641343685744,1.26,168.49,168.4,2.40665018]
[1641343685937,1.26,168.49,168.4,2.90665018]
[1641343686137,1.26,168.49,168.41,31.04227379]
[1641343686338,10.78274859,168.5,168.41,32.49078165]
[1641343686538,10.78274859,168.5,168.42,11.30690786]
[1641343686940,10.78274859,168.5,168.43,1.44850786]
[1641343687340,10.78274859,168.5,168.43,2.20850786]
[1641343687740,10.78274859,168.5,168.44,1.44850786]
[1641343687940,10.78274859,168.5,168.44,1.94850786]
[1641343688141,10.78274859,168.5,168.44,2.20850786]
[1641343688341,10.78274859,168.5,168.45,1.44850786]
[1641343688542,10.78274859,168.5,168.46,2.16826599]
[1641343688943,10.78274859,168.5,168.46,4.37677385]
[1641343691546,1.66937671,168.59,168.5,10.78274859]
[1641343691747,1.66937671,168.59,168.5,19.30274859]
[1641343691946,1.66937671,168.59,168.51,2.72040786]
[1641343692146,1.66937671,168.59,168.52,2.97385085]
[1641343692347,1.66937671,168.59,168.52,4.92235871]
[1641343692646,1.66937671,168.59,168.52,28.38697094]
[1641343692848,23.04931789,168.62,168.52,28.38697094]
[1641343693674,32.06931789,168.62,168.52,3.23385085]
[1641343693876,32.06931789,168.62,168.52,2.97385085]
[1641343694074,33.51782575,168.62,168.52,2.97385085]
[1641343694274,32.06931789,168.62,168.52,2.97385085]
[1641343694673,32.32931789,168.62,168.52,2.97385085]
[1641343695275,33.9986946,168.62,168.52,3.23385085]
[1641343697976,33.9986946,168.62,168.52,0.26]
[1641343698176,33.9986946,168.62,168.5,11.54274859]
[1641343700980,33.9986946,168.62,168.51,3.03191706]
[1641343701381,33.9986946,168.62,168.51,3.29191706]
[1641343703380,32.32931789,168.62,168.51,3.29191706]
[1641343706282,32.32931789,168.62,168.51,0.26]
[1641343706483,32.32931789,168.62,168.5,11.04274859]
[1641343707383,32.32931789,168.62,168.5,13.79489837]
[1641343708183,138.76931789,168.62,168.5,13.79489837]
[1641343708585,141.88720246,168.62,168.5,11.04274859]
[1641343709387,146.59720246,168.62,168.5,10.78274859]
[1641343709590,106.44,168.58,168.5,10.78274859]
[1641343709889,8.52,168.57,168.5,10.78274859]
[1641343710189,8.78,168.57,168.5,10.78274859]
[1641343710390,9.28,168.57,168.5,10.78274859]
[1641343710991,9.28,168.57,168.5,11.04274859]
[1641343711391,115.72,168.57,168.5,11.04274859]
[1641343711593,115.72,168.57,168.5,10.78274859]
[1641343711792,106.44,168.56,168.5,10.78274859]
[1641343711991,8.52,168.55,168.5,10.78274859]
[1641343712392,9.28,168.55,168.5,10.78274859]
[1641343712794,30.11844243,168.54,168.5,10.78274859]
[1641343712993,8.52,168.53,168.5,10.78274859]
[1641343713393,9.28,168.53,168.5,10.78274859]
[1641343715795,9.02,168.53,168.5,10.78274859]
[1641343719512,9.28,168.53,168.5,0.00274859]
[1641343719703,130.0919,168.52,168.5,0.00274859]
[1641343719904,8.52,168.51,168.5,0.00274859]
[1641343720106,8.78,168.51,168.5,0.00274859]
[1641343720306,9.28,168.51,168.5,0.00274859]
[1641343721005,10.5792,168.51,168.5,0.00274859]
[1641343723908,10.3192,168.51,168.5,0.00274859]
[1641343724808,9.02,168.51,168.5,0.00274859]
[1641343728635,8.52,168.51,168.5,0.00274859]
[1641343730344,0.5,168.51,168.5,0.00274859]
[1641343732043,30.99387002,168.5,168.42,26.08114859]
[1641343732844,30.49387002,168.5,168.42,26.08114859]
[1641343733647,30.99387002,168.5,168.42,26.08114859]
[1641343734949,0.5,168.5,168.42,26.08114859]
[1641343735347,9.02,168.52,168.42,26.08114859]
[1641343735947,24.67542551,168.51,168.42,26.08114859]
[1641343736348,25.17542551,168.51,168.42,26.08114859]
[1641343737349,25.17542551,168.51,168.42,25.82114859]
[1641343737550,8.52,168.5,168.42,25.32114859]
[1641343738650,9.02,168.5,168.42,25.32114859]
[1641343739250,9.28,168.5,168.42,25.32114859]
[1641343739653,9.02,168.5,168.42,25.32114859]
[1641343739856,9.02,168.5,168.42,25.58114859]
[1641343740056,9.28,168.5,168.42,25.58114859]
[1641343740656,9.02,168.5,168.42,25.58114859]
[1641343741055,9.28,168.5,168.42,25.58114859]
[1641343741859,9.28,168.5,168.42,1.08284859]
[1641343742863,9.28,168.5,168.42,0.82284859]
[1641343744066,9.02,168.5,168.42,0.82284859]
[1641343745066,8.52,168.5,168.42,0.82284859]
[1641343745267,24.67542551,168.51,168.42,0.82284859]
[1641343745467,25.17542551,168.51,168.42,0.82284859]
[1641343746995,25.17542551,168.51,168.42,30.38432568]
[1641343747394,25.17542551,168.51,168.42,31.14432568]
[1641343755601,25.17542551,168.51,168.42,30.64432568]
[1641343755801,25.17542551,168.51,168.42,31.14432568]
[1641343757805,25.17542551,168.51,168.42,1.58284859]
[1641343758006,25.17542551,168.51,168.42,1.08284859]
[1641343758210,25.17542551,168.51,168.42,1.58284859]
[1641343758715,25.17542551,168.51,168.42,1.08284859]
[1641343759210,33.69542551,168.51,168.42,0.82284859]
[1641343759411,40.34842551,168.51,168.42,0.82284859]
[1641343759610,40.60842551,168.51,168.41,23.2394]
[1641343759811,40.60842551,168.51,168.4,75.216]
[1641343761112,33.95542551,168.51,168.4,75.216]
[1641343761612,33.95542551,168.51,168.41,2.3571882]
[1641343762013,33.95542551,168.51,168.41,2.6171882]
[1641343762514,33.95542551,168.51,168.41,2.3571882]
[1641343764017,33.95542551,168.51,168.41,2.6171882]
[1641343764815,33.69542551,168.51,168.41,2.6171882]
[1641343765015,33.69542551,168.51,168.41,27.6716882]
[1641343765517,33.69542551,168.51,168.41,55.98828964]
[1641343770119,0.5,168.51,168.41,57.9367975]
[1641343770319,0.5,168.51,168.41,63.5207975]
[1641343770519,9.02,168.54,168.41,63.5207975]
[1641343771122,35.27418739,168.54,168.41,63.5207975]
[1641343771319,35.27418739,168.54,168.41,57.9367975]
[1641343785334,35.27418739,168.54,168.41,57.6767975]
[1641343785535,23.187,168.53,168.41,27.9116882]
[1641343785733,8.52,168.52,168.41,27.9116882]
[1641343785933,9.02,168.52,168.41,27.9116882]
[1641343787340,9.02,168.52,168.41,28.1716882]
[1641343788339,9.02,168.52,168.41,27.6716882]
[1641343788540,9.28,168.52,168.41,27.6716882]
[1641343788740,9.28,168.52,168.41,25.3145]
[1641343789141,9.02,168.52,168.41,25.3145]
[1641343789844,9.02,168.52,168.42,2.24739146]
[1641343790042,9.02,168.52,168.42,2.50739146]
[1641343791446,9.02,168.52,168.42,3.00739146]
[1641343793745,9.02,168.52,168.43,29.30146266]
[1641343794146,9.02,168.52,168.43,29.56146266]
[1641343797969,8.52,168.52,168.43,29.56146266]
[1641343798471,8.52,168.52,168.43,30.06146266]
[1641343799771,8.52,168.52,168.43,29.56146266]
[1641343799973,0.5,168.52,168.43,30.06146266]
[1641343800373,26.75418739,168.54,168.45,2.53583695]
[1641343800576,26.75418739,168.54,168.45,2.79583695]
[1641343801176,26.75418739,168.54,168.46,1.2476]
[1641343801572,26.75418739,168.54,168.46,1.5076]
[1641343802174,0.5,168.54,168.47,31.59048815]
[1641343802374,9.02,168.55,168.47,31.59048815]
[1641343802572,9.02,168.55,168.48,2.53101868]
[1641343802973,9.02,168.55,168.48,2.79101868]
[1641343804077,31.11962794,168.56,168.48,2.79101868]
[1641343804276,31.11962794,168.56,168.48,25.86261868]
[1641343804477,31.61962794,168.56,168.48,25.86261868]
[1641343804676,31.61962794,168.56,168.48,27.15561868]
[1641343805477,31.61962794,168.56,168.48,4.08401868]
[1641343806279,31.61962794,168.56,168.48,27.85821868]
[1641343807078,31.61962794,168.56,168.48,4.08401868]
[1641343807280,31.61962794,168.56,168.48,1.553]
[1641343807677,31.61962794,168.56,168.48,0.26]
[1641343807879,31.61962794,168.56,168.46,23.7892]
[1641343808281,31.61962794,168.56,168.47,1.2552]
[1641343808479,31.61962794,168.56,168.48,2.85718062]
[1641343808881,31.61962794,168.56,168.48,3.11718062]
[1641343809284,31.61962794,168.56,168.49,1.2453]
[1641343809482,31.61962794,168.56,168.49,1.5053]
[1641343810281,31.61962794,168.56,168.49,1.2453]
[1641343811484,31.61962794,168.56,168.49,1.5053]
[1641343830336,31.61962794,168.56,168.49,0.26]
[1641343830535,31.61962794,168.56,168.46,23.5292]
[1641343830736,8.52,168.55,168.46,23.0292]
[1641343830935,9.02,168.55,168.46,23.0292]
[1641343831135,9.02,168.55,168.45,73.6599]
[1641343831335,34.2248,168.55,168.42,1.3569]
[1641343831736,34.2248,168.55,168.42,2.4951227]
[1641343832335,34.2248,168.55,168.42,25.9229227]
[1641343832736,35.89417671,168.55,168.42,25.9229227]
[1641343833837,35.89417671,168.55,168.42,26.1829227]
[1641343834438,1.66937671,168.54,168.42,26.1829227]
[1641343834642,8.52,168.53,168.43,1.3269]
[1641343834837,24.14033062,168.52,168.43,1.3269]
[1641343835036,24.14033062,168.52,168.43,1.5869]
[1641343835238,24.64033062,168.52,168.43,1.5869]
[1641343837246,8.52,168.51,168.43,1.5869]
[1641343837442,9.02,168.51,168.43,1.5869]
[1641343838745,8.52,168.51,168.43,1.5869]
[1641343838946,0.5,168.51,168.43,2.0869]
[1641343839345,24.4583,168.53,168.43,2.0869]
[1641343839975,24.94538402,168.52,168.43,2.0869]
[1641343840371,25.44538402,168.52,168.43,2.0869]
[1641343851086,25.44538402,168.52,168.43,1.8269]
[1641343851485,25.44538402,168.52,168.43,1.3269]
[1641343851685,25.44538402,168.52,168.43,1.8269]
[1641343852589,25.44538402,168.52,168.43,2.0869]
[1641343859824,0.5,168.52,168.43,2.0869]
[1641343860224,0.5,168.53,168.43,3.53540786]
[1641343860423,9.02,168.56,168.43,3.53540786]
[1641343860825,9.02,168.56,168.45,3.0065357]
[1641343861027,9.02,168.56,168.46,22.7057]
[1641343861426,9.02,168.56,168.46,22.9657]
[1641343861624,9.02,168.56,168.47,1.3329]
[1641343861824,9.28,168.56,168.47,1.3329]
[1641343862024,9.28,168.56,168.47,1.5929]
[1641343862225,33.9739,168.56,168.47,1.5929]
[1641343862424,33.9739,168.56,168.47,0.26]
[1641343862625,33.9739,168.56,168.46,22.9657]
[1641343864028,33.9739,168.56,168.46,24.3239]
[1641343866932,33.9739,168.56,168.46,24.8239]
[1641343867532,33.9739,168.56,168.46,24.3239]
[1641343867932,33.9739,168.56,168.46,24.8239]
[1641343871733,33.9739,168.56,168.46,55.50641698]
[1641343874234,33.9739,168.56,168.46,24.8239]
[1641343874633,33.9739,168.56,168.46,24.3239]
[1641343878546,33.9739,168.56,168.46,22.9657]
[1641343882149,33.4739,168.56,168.46,22.9657]
[1641343882549,33.4739,168.56,168.46,24.2746]
[1641343884153,33.4739,168.56,168.46,0.26]
[1641343884353,33.4739,168.56,168.42,24.144]
[1641343884559,1.66937671,168.55,168.42,24.144]
[1641343884754,8.52,168.54,168.38,106.72809436]
[1641343884955,9.02,168.54,168.39,22.9064]
[1641343885156,9.28,168.54,168.41,2.74897097]
[1641343885355,1.66937671,168.53,168.41,2.74897097]
[1641343885554,8.52,168.52,168.41,2.74897097]
[1641343885960,9.28,168.52,168.41,3.00897097]
[1641343886158,30.76211444,168.5,168.41,3.00897097]
[1641343886460,39.78211444,168.5,168.41,3.00897097]
[1641343886659,40.04211444,168.5,168.41,3.00897097]
[1641343886860,46.11111444,168.5,168.41,3.00897097]
[1641343888460,40.04211444,168.5,168.41,3.00897097]
[1641343889662,40.04211444,168.5,168.41,2.74897097]
[1641343889862,47.53011444,168.5,168.41,2.74897097]
[1641343890063,47.53011444,168.5,168.39,24.2643]
[1641343890263,22.5078,168.49,168.39,24.5243]
[1641343890462,8.52,168.48,168.39,24.5243]
[1641343890862,9.28,168.48,168.39,24.5243]
[1641343891064,9.28,168.48,168.4,2.55071266]
[1641343891464,9.28,168.48,168.4,2.81071266]
[1641343892887,9.02,168.48,168.4,2.81071266]
[1641343893685,9.02,168.48,168.4,4.06861266]
[1641343894387,9.28,168.48,168.4,4.06861266]
[1641343894789,8.78,168.48,168.4,4.06861266]
[1641343896287,8.52,168.48,168.4,4.06861266]
[1641343898588,8.78,168.48,168.4,4.06861266]
[1641343898789,8.52,168.48,168.4,4.06861266]
[1641343900395,8.78,168.48,168.4,4.06861266]
[1641343901603,8.52,168.48,168.4,4.06861266]
[1641343906812,8.78,168.48,168.4,4.06861266]
[1641343908915,8.78,168.48,168.4,4.56861266]
[1641343909815,8.52,168.48,168.4,4.56861266]
[1641343910614,8.52,168.48,168.41,24.4063]
[1641343911042,8.52,168.48,168.41,24.6663]
[1641343912542,8.52,168.48,168.41,25.1663]
[1641343913341,8.52,168.48,168.41,24.6663]
[1641343913942,8.52,168.48,168.41,25.1663]
[1641343914743,8.52,168.48,168.41,24.6663]
[1641343920352,8.52,168.48,168.41,24.4063]
[1641343920555,8.78,168.48,168.41,24.4063]
[1641343921051,8.78,168.48,168.4,1.2579]
[1641343921650,8.78,168.48,168.4,1.5179]
[1641343921851,8.78,168.48,168.4,1.2579]